fUSD/lending_fUSD_20241119
["ID","MTS","AMOUNT","RATE_DAILY","PERIOD"]
[342698735,1732052965542,-560.94,0.00034951,2]
[342698736,1732052965564,-968.26,0.00035185,120]
[342698737,1732052965587,-284.37,0.00035214,120]
[342698738,1732052965607,-150.0,0.00035952,2]
[342698739,1732052965627,-200.0,0.00036521,2]
[342698740,1732052965647,-580.56,0.00036705,2]
[342698741,1732052965668,-206.04,0.00036949,120]
[342698742,1732052965692,-507.04,0.00037017,2]
[342698743,1732052965718,-430.17,0.00037271,10]
[342698744,1732052965740,-518.78133681,0.0003728,2]
[342698745,1732052965760,-200.0,0.00037281,2]
[342698746,1732052965781,-15838.47298491,0.00037281,2]
[342698747,1732052968102,-163.89,0.00030267,2]
[342698748,1732052968125,-1137.51586794,0.00037281,2]
[342698749,1732052969107,-6924.01114715,0.00037281,2]
[342698750,1732052969128,-557.0,0.00038023,30]
[342698751,1732052969149,-1000.0,0.00038227,2]
[342698752,1732052969170,-151.0,0.00038575,120]
[342698753,1732052969192,-580.56,0.00038969,2]
[342698754,1732052969214,-206.04,0.00039533,120]
[342698755,1732052969238,-968.26,0.00039583,120]
[342698756,1732052969261,-150.11,0.00039614,2]
[342698757,1732052969282,-12499.99,0.0004,120]
[342698758,1732052969304,-12500.0,0.0004,120]
[342698759,1732052969325,-2751.0,0.0004015,120]
[342698760,1732052969346,-150.0,0.00040674,2]
[342698761,1732052969368,-157.18,0.00040952,2]
[342698762,1732052969389,-157.0,0.00041096,2]
[342698763,1732052969411,-580.56,0.00041233,2]
[342698764,1732052969432,-206.04,0.00042117,120]
[342698765,1732052969453,-1000.0,0.00042474,2]
[342698766,1732052969473,-1815.881698,0.000428,30]
[342698767,1732052969496,-5000.0,0.000428,120]
[342698768,1732052969516,-168.63749485,0.000429,15]
[342698784,1732053032076,-358.91053367,0.00031633,120]
[342698785,1732053032086,-1356.81226504,0.00031633,120]
[342698786,1732053032095,-150.0,0.00034095,2]
[342698787,1732053032104,-150.0,0.00034095,2]
[342698788,1732053032114,-150.0,0.00034095,2]
[342698789,1732053032123,-930.33,0.00041681,120]
[342698790,1732053032132,-1369.02395153,0.000429,15]
[342698791,1732053032283,-328.4348001,0.000429,15]
[342698792,1732053032303,-9006.10017524,0.000429,15]
[342698793,1732053032313,-182.12614556,0.000429,15]
[342698794,1732053032322,-358.47,0.0004299,10]
[342698795,1732053032332,-299.63,0.0004299,30]
[342698796,1732053032342,-298.73,0.0004299,10]
[342698797,1732053032355,-248.94,0.0004299,10]
[342698798,1732053032364,-1000.0,0.00042999,2]
[342698799,1732053032374,-33330.0036792,0.00043,30]
[342698800,1732053032385,-76441.21265403,0.00043,30]
[342698801,1732053032404,-1089.69,0.00043,30]
[342698802,1732053032416,-76602.08112693,0.00043,30]
[342698803,1732053032426,-580.56,0.00043497,2]
[342698804,1732053032435,-837.63,0.0004373,2]
[342698805,1732053032444,-837.63,0.00043741,2]
[342698806,1732053032453,-837.63,0.00043753,2]
[342698807,1732053032463,-1000.0,0.00043763,2]
[342698808,1732053032472,-837.63,0.00043764,2]
[342698809,1732053032481,-837.63,0.00043776,2]
[342698811,1732053032490,-837.63,0.00043787,2]
[342698813,1732053032499,-837.63,0.00043799,2]
[342698815,1732053032508,-837.63,0.0004381,2]
[342698817,1732053032518,-837.63,0.00043822,2]
[342698819,1732053032527,-837.63,0.00043833,2]
[342698821,1732053032537,-837.63,0.00043845,2]
[342698823,1732053032549,-837.63,0.00043857,2]
[342698825,1732053032557,-837.63,0.00043868,2]
[342698827,1732053032566,-837.63,0.0004388,2]
[342698829,1732053032575,-837.63,0.00043891,2]
[342698831,1732053032584,-837.63,0.00043903,2]
[342698833,1732053032594,-837.63,0.00043914,2]
[342698835,1732053032603,-837.63,0.00043926,2]
[342698836,1732053032612,-837.63,0.00043937,2]
[342698838,1732053032621,-837.63,0.00043949,2]
[342698840,1732053032630,-968.26,0.00043981,120]
[342698842,1732053032639,-206.04,0.00044701,120]
[342698844,1732053032649,-19056.0,0.00045024,30]
[342698846,1732053032658,-10872.19642171,0.00045122,15]
[342698848,1732053032667,-150.11,0.00045346,2]
[342698850,1732053032676,-150.0,0.00045589,10]
[342698852,1732053032685,-580.56,0.00045761,2]
[342698854,1732053032694,-284.37,0.00046447,120]
[342698856,1732053032704,-1000.0,0.00046722,2]
[342698858,1732053032713,-1500.0,0.00046742,120]
[342698860,1732053032722,-250.0,0.00046787,2]
[342698862,1732053032731,-150.0,0.00046946,2]
[342698864,1732053032740,-23900.0,0.00047074,2]
[342698866,1732053032749,-2751.0,0.00047089,120]
[342698868,1732053032758,-4000.0,0.00047108,2]
[342698870,1732053032767,-151.0,0.00047151,120]
[342698872,1732053032776,-206.04,0.00047285,120]
[342698874,1732053032785,-10872.19642171,0.00047344,15]
[342698875,1732053032797,-157.18,0.00047354,2]
[342698876,1732053032809,-580.56,0.00048025,2]
[342698877,1732053032818,-968.26,0.00048379,120]
[342698878,1732053032827,-382.32,0.000492,7]
[342698879,1732053032836,-150.0,0.000495,2]
[342698880,1732053032846,-250.0,0.00049534,120]
[342698881,1732053032855,-10872.19642171,0.00049567,15]
[342698882,1732053032864,-305.80539438,0.000498,120]
[342698883,1732053032873,-206.04,0.00049869,120]
[342698884,1732053032882,-500.0,0.0005,120]
[342698885,1732053032892,-580.56,0.00050289,2]
[342698887,1732053032901,-1000.0,0.00050969,120]
[342698889,1732053032911,-150.11,0.00051078,2]
[342698891,1732053032920,-10872.19642171,0.00051789,15]
[342698893,1732053032929,-328.62,0.00052,7]
[342698895,1732053032939,-206.04,0.00052453,120]
[342698897,1732053032948,-580.56,0.00052553,2]
[342698899,1732053032957,-4305.0,0.0005259,117]
[342698901,1732053032966,-902.44682334,0.00052668,24]
[342698903,1732053032975,-194.318123,0.00052739,30]
[342698905,1732053032985,-169.28,0.00052768,2]
[342698907,1732053032994,-968.26,0.00052777,120]
[342698909,1732053033003,-182.12614554,0.000529,15]
[342698911,1732053033012,-219.2,0.00052939,7]
[342698913,1732053033022,-1646.806,0.00053412,99]
[342698915,1732053033033,-9762.3,0.00053582,7]
[342698917,1732053033044,-157.18,0.00053756,2]
[342698919,1732053033054,-166.69,0.00053794,2]
[342698921,1732053033063,-1152.18,0.00053882,2]
[342698923,1732053033073,-401.31011053,0.00053911,2]
[342698925,1732053033082,-1111.99798061,0.00053967,30]
[342698927,1732053033091,-50000.0,0.00054,24]
[342698929,1732053033101,-50000.0,0.00054,34]
[342698930,1732053033110,-50000.0,0.00054,54]
[342698933,1732053033120,-10872.19642171,0.00054011,15]
[342698934,1732053033129,-273.85,0.000546,14]
[342698936,1732053033138,-401.31011042,0.00054615,2]
[342698938,1732053033147,-5000.0,0.00054692,120]
[342698940,1732053033157,-155000.0,0.00054694,120]
[342698942,1732053033166,-2575.0555421,0.00054793,120]
[342698944,1732053033176,-501.60479331,0.00054794,120]
[342698947,1732053033186,-500.0,0.00054794,120]
[342698948,1732053033195,-500.0,0.00054794,120]
[342698950,1732053033209,-495.84552936,0.00054794,120]
[342698952,1732053033219,-501.00248398,0.00054794,120]
[342698954,1732053033228,-501.28156774,0.00054794,120]
[342698957,1732053033238,-500.0,0.00054794,120]
[342698958,1732053033248,-500.0,0.00054794,120]
[342698960,1732053033267,-500.0,0.00054794,7]
[342698962,1732053033278,-500.0,0.00054794,120]
[342698964,1732053033287,-374.35653041,0.00054794,120]
[342698966,1732053033297,-382.42601907,0.00054794,120]
[342698968,1732053033306,-500.0,0.00054794,120]
[342698970,1732053033315,-500.0,0.00054794,120]
[342698972,1732053033325,-500.0,0.00054794,120]
[342698974,1732053033334,-500.0,0.00054794,120]
[342698976,1732053033343,-179.3945168,0.00054794,120]
[342698978,1732053033353,-501.60236078,0.00054794,120]
[342698980,1732053033362,-500.0,0.00054794,120]
[342698982,1732053033371,-315.19305026,0.00054794,30]
[342698984,1732053033380,-500.0,0.00054794,120]
[342698986,1732053033389,-500.0,0.00054794,120]
[342698988,1732053033399,-500.0,0.00054794,120]
[342698990,1732053033408,-500.0,0.00054794,120]
[342698992,1732053033418,-511.30618102,0.00054794,120]
[342698994,1732053033428,-312.46438158,0.00054794,120]
[342698996,1732053033438,-500.0,0.00054794,120]
[342698998,1732053033447,-500.0,0.00054794,120]
[342699000,1732053033456,-500.0,0.00054794,120]
[342699002,1732053033465,-500.0,0.00054794,120]
[342699004,1732053033475,-500.0,0.00054794,120]
[342699006,1732053033484,-502.31904286,0.00054794,120]
[342699008,1732053033494,-500.0,0.00054794,120]
[342699010,1732053033503,-500.73339922,0.00054794,120]
[342699012,1732053033512,-539.23635885,0.00054794,120]
[342699014,1732053033521,-518.56775444,0.00054794,120]
[342699016,1732053033530,-500.0,0.00054794,120]
[342699018,1732053033540,-500.19890382,0.00054794,120]
[342699020,1732053033550,-634.69681183,0.00054794,120]
[342699022,1732053033559,-196.51281861,0.00054794,120]
[342699024,1732053033568,-500.0,0.00054794,120]
[342699026,1732053033578,-500.0,0.00054794,120]
[342699028,1732053033587,-500.3381071,0.00054794,120]
[342699030,1732053033596,-500.0,0.00054794,120]
[342699032,1732053033605,-500.0,0.00054794,120]
[342699034,1732053033615,-500.0,0.00054794,120]
[342699035,1732053033624,-500.0,0.00054794,120]
[342699037,1732053033633,-500.0,0.00054794,120]
[342699038,1732053033643,-500.0,0.00054794,120]
[342699040,1732053033652,-500.0,0.00054794,120]
[342699042,1732053033662,-500.0,0.00054794,120]
[342699043,1732053033672,-500.0,0.00054794,120]
[342699045,1732053033681,-500.0,0.00054794,120]
[342699047,1732053033691,-500.0,0.00054794,120]
[342699048,1732053033700,-340.96461177,0.00054794,120]
[342699050,1732053033709,-500.0,0.00054794,120]
[342699052,1732053033719,-500.0,0.00054794,120]
[342699053,1732053033728,-500.0,0.00054794,120]
[342699055,1732053033738,-500.0,0.00054794,120]
[342699056,1732053033747,-500.0,0.00054794,120]
[342699058,1732053033757,-500.0,0.00054794,120]
[342699060,1732053033766,-500.0,0.00054794,120]
[342699062,1732053033776,-500.0,0.00054794,120]
[342699063,1732053033786,-300.0,0.00054794,120]
[342699065,1732053033799,-500.0,0.00054794,120]
[342699067,1732053033808,-500.0,0.00054794,120]
[342699069,1732053033818,-500.0,0.00054794,120]
[342699070,1732053033827,-500.0,0.00054794,120]
[342699072,1732053033837,-500.0,0.00054794,120]
[342699074,1732053033846,-500.0,0.00054794,120]
[342699075,1732053033855,-500.0,0.00054794,120]
[342699077,1732053033865,-500.0,0.00054794,120]
[342699079,1732053033874,-502.32611201,0.00054794,120]
[342699080,1732053033884,-500.0,0.00054794,120]
[342699082,1732053033894,-500.0,0.00054794,120]
[342699083,1732053033904,-500.0,0.00054794,120]
[342699085,1732053033913,-500.0,0.00054794,120]
[342699087,1732053033922,-500.0,0.00054794,120]
[342699089,1732053033932,-500.0,0.00054794,120]
[342699090,1732053033941,-500.0,0.00054794,120]
[342699092,1732053033951,-500.0,0.00054794,120]
[342699094,1732053033960,-500.0,0.00054794,120]
[342699095,1732053033969,-500.0,0.00054794,120]
[342699097,1732053033978,-500.0,0.00054794,120]
[342699099,1732053033988,-500.0,0.00054794,120]
[342699101,1732053033997,-500.0,0.00054794,120]
[342699102,1732053034006,-500.0,0.00054794,120]
[342699104,1732053034015,-500.0,0.00054794,120]
[342699106,1732053034024,-500.0,0.00054794,120]
[342699108,1732053034033,-500.0,0.00054794,120]
[342699109,1732053034044,-500.0,0.00054794,120]
[342699111,1732053034055,-502.25421367,0.00054794,120]
[342699113,1732053034064,-500.0,0.00054794,120]
[342699115,1732053034074,-500.0,0.00054794,120]
[342699116,1732053034084,-500.0,0.00054794,120]
[342699118,1732053034093,-500.0,0.00054794,120]
[342699120,1732053034103,-500.0,0.00054794,120]
[342699122,1732053034112,-500.0,0.00054794,120]
[342699123,1732053034123,-500.0,0.00054794,120]
[342699125,1732053034132,-500.0,0.00054794,120]
[342699127,1732053034142,-500.0,0.00054794,120]
[342699128,1732053034151,-500.0,0.00054794,120]
[342699130,1732053034161,-500.0,0.00054794,120]
[342699132,1732053034170,-500.0,0.00054794,120]
[342699134,1732053034180,-500.0,0.00054794,120]
[342699135,1732053034189,-500.0,0.00054794,120]
[342699137,1732053034199,-500.0,0.00054794,120]
[342699139,1732053034210,-540.55823286,0.00054794,120]
[342699141,1732053034219,-500.0,0.00054794,120]
[342699142,1732053034229,-500.0,0.00054794,120]
[342699144,1732053034238,-500.0,0.00054794,120]
[342699146,1732053034249,-500.0,0.00054794,120]
[342699148,1732053034262,-500.0,0.00054794,120]
[342699150,1732053034272,-500.0,0.00054794,120]
[342699151,1732053034281,-500.0,0.00054794,120]
[342699153,1732053034291,-500.0,0.00054794,120]
[342699155,1732053034306,-628.56488172,0.00054794,120]
[342699157,1732053034316,-500.0,0.00054794,120]
[342699159,1732053034325,-500.0,0.00054794,120]
[342699160,1732053034336,-500.0,0.00054794,120]
[342699162,1732053034345,-500.0,0.00054794,120]
[342699164,1732053034356,-500.0,0.00054794,120]
[342699166,1732053034366,-500.0,0.00054794,120]
[342699167,1732053034375,-500.0,0.00054794,120]
[342699169,1732053034385,-500.0,0.00054794,120]
[342699171,1732053034394,-500.0,0.00054794,120]
[342699172,1732053034403,-500.0,0.00054794,120]
[342699174,1732053034413,-500.0,0.00054794,120]
[342699176,1732053034423,-500.0,0.00054794,120]
[342699178,1732053034433,-359.86762935,0.00054794,120]
[342699179,1732053034443,-500.0,0.00054794,120]
[342699181,1732053034452,-500.0,0.00054794,120]
[342699183,1732053034461,-500.0,0.00054794,120]
[342699185,1732053034471,-500.0,0.00054794,120]
[342699186,1732053034480,-500.0,0.00054794,120]
[342699188,1732053034489,-500.0,0.00054794,120]
[342699190,1732053034498,-218.08748931,0.00054794,120]
[342699191,1732053034508,-500.0,0.00054794,120]
[342699193,1732053034518,-500.0,0.00054794,120]
[342699195,1732053034527,-500.0,0.00054794,120]
[342699197,1732053034537,-295.12131497,0.00054794,120]
[342699199,1732053034553,-500.0,0.00054794,120]
[342699200,1732053034563,-500.0,0.00054794,120]
[342699202,1732053034572,-500.0,0.00054794,120]
[342699204,1732053034582,-500.0,0.00054794,120]
[342699206,1732053034591,-500.0,0.00054794,120]
[342699208,1732053034601,-500.0,0.00054794,120]
[342699210,1732053034610,-500.0,0.00054794,30]
[342699211,1732053034618,-500.0,0.00054794,120]
[342699212,1732053034627,-500.0,0.00054794,120]
[342699213,1732053034636,-500.0,0.00054794,120]
[342699214,1732053034645,-500.0,0.00054794,120]
[342699215,1732053034654,-500.0,0.00054794,120]
[342699216,1732053034663,-500.0,0.00054794,120]
[342699217,1732053034672,-500.0,0.00054794,120]
[342699220,1732053034785,-500.0,0.00054794,120]
[342699222,1732053034797,-500.0,0.00054794,120]
[342699224,1732053034806,-500.0,0.00054794,120]
[342699226,1732053034815,-500.0,0.00054794,120]
[342699228,1732053034824,-500.0,0.00054794,120]
[342699230,1732053034836,-500.0,0.00054794,60]
[342699232,1732053034846,-500.0,0.00054794,120]
[342699234,1732053034856,-500.0,0.00054794,120]
[342699236,1732053034866,-500.0,0.00054794,120]
[342699238,1732053034877,-500.0,0.00054794,120]
[342699240,1732053034887,-500.0,0.00054794,120]
[342699242,1732053034896,-500.0,0.00054794,120]
[342699244,1732053034905,-500.0,0.00054794,120]
[342699246,1732053034915,-500.0,0.00054794,120]
[342699248,1732053034924,-500.0,0.00054794,120]
[342699250,1732053034934,-500.0,0.00054794,120]
[342699252,1732053034943,-500.0,0.00054794,120]
[342699254,1732053034952,-500.0,0.00054794,120]
[342699256,1732053034961,-500.0,0.00054794,120]
[342699258,1732053034971,-503.62311566,0.00054794,120]
[342699260,1732053034980,-500.0,0.00054794,120]
[342699262,1732053034989,-500.0,0.00054794,120]
[342699264,1732053034998,-500.0,0.00054794,120]
[342699266,1732053035007,-500.0,0.00054794,120]
[342699268,1732053035016,-500.0,0.00054794,120]
[342699270,1732053035025,-502.70405126,0.00054794,120]
[342699272,1732053035035,-500.0,0.00054794,120]
[342699274,1732053035046,-500.0,0.00054794,120]
[342699276,1732053035056,-501.47220861,0.00054794,120]
[342699278,1732053035066,-500.0,0.00054794,120]
[342699280,1732053035075,-520.09848008,0.00054794,120]
[342699282,1732053035084,-500.0,0.00054794,120]
[342699284,1732053035093,-500.0,0.00054794,120]
[342699286,1732053035103,-500.0,0.00054794,120]
[342699288,1732053035112,-500.0,0.00054794,120]
[342699290,1732053035121,-500.0,0.00054794,120]
[342699292,1732053035130,-502.24361305,0.00054794,120]
[342699294,1732053035140,-500.0,0.00054794,120]
[342699296,1732053035148,-500.0,0.00054794,120]
[342699298,1732053035157,-522.20909683,0.00054794,120]
[342699300,1732053035166,-504.60596192,0.00054794,120]
[342699302,1732053035176,-500.0,0.00054794,120]
[342699304,1732053035186,-500.0,0.00054794,120]
[342699306,1732053035195,-505.0635546,0.00054794,120]
[342699308,1732053035204,-500.0,0.00054794,120]
[342699310,1732053035213,-500.0,0.00054794,120]
[342699312,1732053035223,-500.0,0.00054794,30]
[342699314,1732053035232,-502.54625338,0.00054794,120]
[342699316,1732053035242,-500.0,0.00054794,120]
[342699318,1732053035252,-500.0,0.00054794,120]
[342699320,1732053035264,-500.0,0.00054794,120]
[342699322,1732053035274,-500.0,0.00054794,120]
[342699324,1732053035283,-500.0,0.00054794,120]
[342699326,1732053035295,-500.0,0.00054794,120]
[342699328,1732053035305,-500.0,0.00054794,120]
[342699330,1732053035314,-501.41178857,0.00054794,120]
[342699332,1732053035325,-500.0,0.00054794,120]
[342699334,1732053035337,-500.0,0.00054794,120]
[342699336,1732053035346,-500.0,0.00054794,120]
[342699338,1732053035355,-500.0,0.00054794,120]
[342699340,1732053035364,-500.0,0.00054794,120]
[342699342,1732053035374,-505.95293598,0.00054794,120]
[342699344,1732053035383,-500.0,0.00054794,120]
[342699345,1732053035392,-500.0,0.00054794,120]
[342699347,1732053035401,-500.0,0.00054794,120]
[342699349,1732053035409,-500.0,0.00054794,120]
[342699351,1732053035418,-500.0,0.00054794,120]
[342699353,1732053035427,-500.0,0.00054794,120]
[342699355,1732053035437,-500.0,0.00054794,120]
[342699357,1732053035446,-500.0,0.00054794,120]
[342699359,1732053035456,-500.0,0.00054794,2]
[342699361,1732053035465,-500.0,0.00054794,120]
[342699363,1732053035475,-500.0,0.00054794,120]
[342699365,1732053035484,-500.0,0.00054794,120]
[342699367,1732053035494,-500.0,0.00054794,120]
[342699369,1732053035504,-500.0,0.00054794,120]
[342699371,1732053035513,-500.0,0.00054794,120]
[342699373,1732053035523,-500.0,0.00054794,120]
[342699375,1732053035532,-500.0,0.00054794,120]
[342699377,1732053035544,-500.0,0.00054794,120]
[342699379,1732053035553,-500.0,0.00054794,120]
[342699381,1732053035562,-500.0,0.00054794,120]
[342699383,1732053035572,-504.44641371,0.00054794,120]
[342699385,1732053035582,-500.0,0.00054794,120]
[342699386,1732053035591,-500.0,0.00054794,120]
[342699389,1732053035601,-500.0,0.00054794,120]
[342699391,1732053035612,-500.0,0.00054794,120]
[342699392,1732053035622,-500.91874933,0.00054794,120]
[342699394,1732053035631,-500.0,0.00054794,120]
[342699396,1732053035641,-500.0,0.00054794,120]
[342699399,1732053035650,-503.48908625,0.00054794,120]
[342699401,1732053035659,-501.64137332,0.00054794,120]
[342699402,1732053035669,-500.0,0.00054794,120]
[342699404,1732053035679,-501.26719331,0.00054794,120]
[342699406,1732053035688,-500.0,0.00054794,120]
[342699409,1732053035699,-512.7891272,0.00054794,120]
[342699410,1732053035709,-500.0,0.00054794,120]
[342699412,1732053035718,-500.0,0.00054794,120]
[342699414,1732053035728,-500.0,0.00054794,60]
[342699416,1732053035738,-500.0,0.00054794,120]
[342699418,1732053035747,-500.0,0.00054794,120]
[342699420,1732053035757,-500.0,0.00054794,120]
[342699422,1732053035766,-500.0,0.00054794,120]
[342699424,1732053035776,-500.0,0.00054794,120]
[342699426,1732053035785,-500.0,0.00054794,120]
[342699428,1732053035801,-500.0,0.00054794,120]
[342699430,1732053035810,-500.0,0.00054794,120]
[342699432,1732053035820,-500.0,0.00054794,120]
[342699434,1732053035829,-237.31093714,0.00054794,120]
[342699436,1732053035839,-530.64267076,0.00054794,120]
[342699438,1732053035849,-500.0,0.00054794,120]
[342699440,1732053035859,-500.0,0.00054794,120]
[342699442,1732053035868,-500.0,0.00054794,120]
[342699444,1732053035878,-500.0,0.00054794,120]
[342699446,1732053035888,-513.57,0.00054794,120]
[342699448,1732053035897,-500.0,0.00054794,120]
[342699450,1732053035906,-500.0,0.00054794,120]
[342699452,1732053035916,-501.90911715,0.00054794,120]
[342699454,1732053035925,-500.0,0.00054794,120]
[342699456,1732053035934,-500.0,0.00054794,120]
[342699458,1732053035943,-500.0,0.00054794,120]
[342699460,1732053035952,-500.0,0.00054794,120]
[342699462,1732053035961,-500.0,0.00054794,120]
[342699464,1732053035971,-500.0,0.00054794,120]
[342699466,1732053035981,-500.0,0.00054794,120]
[342699468,1732053035990,-500.0,0.00054794,120]
[342699469,1732053036000,-500.0,0.00054794,120]
[342699471,1732053036010,-500.0,0.00054794,120]
[342699474,1732053036019,-500.0,0.00054794,10]
[342699476,1732053036029,-500.0,0.00054794,120]
[342699477,1732053036038,-500.0,0.00054794,120]
[342699480,1732053036051,-500.0,0.00054794,120]
[342699481,1732053036060,-500.0,0.00054794,120]
[342699483,1732053036070,-500.0,0.00054794,120]
[342699485,1732053036079,-500.0,0.00054794,120]
[342699487,1732053036089,-500.0,0.00054794,120]
[342699489,1732053036098,-500.0,0.00054794,120]
[342699491,1732053036108,-500.0,0.00054794,120]
[342699493,1732053036118,-500.0,0.00054794,120]
[342699495,1732053036128,-500.94001847,0.00054794,120]
[342699497,1732053036138,-506.13797227,0.00054794,120]
[342699499,1732053036147,-500.0,0.00054794,120]
[342699501,1732053036156,-500.0,0.00054794,120]
[342699503,1732053036165,-500.0,0.00054794,120]
[342699505,1732053036175,-500.0,0.00054794,120]
[342699507,1732053036184,-500.0,0.00054794,120]
[342699509,1732053036194,-500.0,0.00054794,120]
[342699511,1732053036203,-500.0,0.00054794,120]
[342699513,1732053036212,-500.0,0.00054794,120]
[342699515,1732053036222,-500.0,0.00054794,120]
[342699517,1732053036231,-500.0,0.00054794,120]
[342699519,1732053036240,-500.0,0.00054794,120]
[342699521,1732053036251,-500.0,0.00054794,120]
[342699523,1732053036264,-500.0,0.00054794,120]
[342699525,1732053036274,-500.0,0.00054794,120]
[342699527,1732053036283,-600.76174416,0.00054794,120]
[342699529,1732053036295,-500.0,0.00054794,120]
[342699531,1732053036305,-500.0,0.00054794,120]
[342699533,1732053036315,-510.89038001,0.00054794,120]
[342699535,1732053036324,-500.0,0.00054794,120]
[342699537,1732053036336,-500.0,0.00054794,120]
[342699539,1732053036345,-240.71,0.00054794,120]
[342699541,1732053036355,-500.0,0.00054794,120]
[342699543,1732053036365,-500.0,0.00054794,120]
[342699545,1732053036374,-500.0,0.00054794,120]
[342699547,1732053036383,-500.0,0.00054794,120]
[342699549,1732053036393,-500.0,0.00054794,120]
[342699551,1732053036402,-500.0,0.00054794,120]
[342699553,1732053036412,-500.0,0.00054794,120]
[342699555,1732053036422,-500.0,0.00054794,120]
[342699557,1732053036431,-500.0,0.00054794,120]
[342699559,1732053036441,-500.0,0.00054794,120]
[342699561,1732053036451,-551.91214522,0.00054794,120]
[342699563,1732053036460,-500.0,0.00054794,120]
[342699565,1732053036470,-500.0,0.00054794,120]
[342699567,1732053036479,-500.0,0.00054794,120]
[342699569,1732053036489,-500.0,0.00054794,120]
[342699571,1732053036498,-500.0,0.00054794,120]
[342699573,1732053036507,-500.0,0.00054794,120]
[342699575,1732053036517,-500.0,0.00054794,120]
[342699576,1732053036526,-500.0,0.00054794,120]
[342699578,1732053036536,-500.0,0.00054794,120]
[342699581,1732053036548,-500.0,0.00054794,120]
[342699582,1732053036557,-500.0,0.00054794,120]
[342699584,1732053036567,-500.0,0.00054794,120]
[342699587,1732053036577,-501.15306778,0.00054794,120]
[342699588,1732053036587,-500.0,0.00054794,120]
[342699590,1732053036597,-500.0,0.00054794,120]
[342699593,1732053036607,-500.0,0.00054794,120]
[342699595,1732053036616,-500.0,0.00054794,120]
[342699597,1732053036627,-500.0,0.00054794,120]
[342699599,1732053036639,-500.0,0.00054794,120]
[342699601,1732053036648,-500.0,0.00054794,120]
[342699602,1732053036659,-500.0,0.00054794,120]
[342699604,1732053036669,-500.0,0.00054794,120]
[342699606,1732053036679,-500.0,0.00054794,120]
[342699608,1732053036689,-500.0,0.00054794,120]
[342699610,1732053036699,-500.0,0.00054794,120]
[342699613,1732053036708,-500.0,0.00054794,120]
[342699615,1732053036718,-500.0,0.00054794,60]
[342699617,1732053036729,-500.0,0.00054794,120]
[342699618,1732053036738,-500.0,0.00054794,120]
[342699620,1732053036748,-165.73431058,0.00054794,120]
[342699622,1732053036757,-500.0,0.00054794,120]
[342699624,1732053036771,-500.0,0.00054794,120]
[342699626,1732053036781,-500.0,0.00054794,120]
[342699629,1732053036791,-500.0,0.00054794,120]
[342699630,1732053036804,-500.0,0.00054794,120]
[342699632,1732053036813,-500.0,0.00054794,120]
[342699633,1732053036823,-500.0,0.00054794,120]
[342699634,1732053036834,-500.0,0.00054794,120]
[342699635,1732053036844,-500.0,0.00054794,120]